bitfinex/quotes_ETHUSD_20250526
["timestamp","ask_amount","ask_price","bid_price","bid_amount"]
[1748225560288,0.7693,2553.0,2552.8,3.91726731]
[1748225560496,3.91650756,2553.3,2552.8,3.91726731]
[1748225560497,3.913,2553.1,2552.8,3.91726731]
[1748225560679,4.77227076,2553.1,2552.9,3.91701695]
[1748225560880,3.913,2553.1,2552.9,3.91701695]
[1748225561078,3.913,2553.1,2552.8,3.91719919]
[1748225561520,3.913,2553.1,2552.9,3.91709703]
[1748225562132,0.7632,2553.3,2553.0,3.91694959]
[1748225562287,0.7632,2553.3,2553.1,3.91675947]
[1748225562493,4.2726393,2553.4,2552.8,6.06591305]
[1748225562698,4.2726393,2553.4,2553.2,3.91657241]
[1748225562907,4.2726393,2553.4,2553.1,3.9167446]
[1748225563106,4.2726393,2553.4,2553.0,3.91689554]
[1748225563316,3.913,2553.4,2552.8,6.06591305]
[1748225563709,3.913,2553.4,2553.0,3.91681533]
[1748225564535,4.67924194,2553.6,2553.0,3.91681533]
[1748225564738,4.51125417,2553.5,2553.0,3.91681533]
[1748225568736,8.42744844,2553.5,2553.0,3.91681533]
[1748225570238,8.42744844,2553.5,2552.6,6.15]
[1748225570239,4.51125417,2553.5,2552.7,8.0]
[1748225570440,8.42750219,2553.5,2552.8,3.91717022]
[1748225570797,3.9165114,2553.3,2552.8,3.91717022]
[1748225571011,3.91668545,2553.2,2552.7,11.91730744]
[1748225571213,0.8049,2553.1,2552.7,11.91730744]
[1748225571413,0.8049,2553.1,2552.8,3.91724692]
[1748225571646,5.15098294,2553.3,2552.9,3.91705997]
[1748225571647,1.23440136,2553.3,2552.9,3.91705997]
[1748225572623,1.23440136,2553.3,2552.7,8.0]
[1748225572812,4.51222529,2553.2,2552.7,11.91732173]
[1748225573000,0.59556848,2553.2,2552.7,11.91732173]
[1748225573205,0.59556848,2553.2,2552.8,3.917225]
[1748225578185,4.51227888,2553.2,2552.7,11.91740124]
[1748225578390,0.59556848,2553.2,2552.5,3.91764411]
[1748225578546,3.91712741,2552.9,2552.5,8.0]
[1748225578753,3.91712741,2552.9,2552.4,3.91785672]
[1748225578754,3.91711387,2552.9,2552.4,3.91785672]
[1748225578964,3.91749588,2552.7,2552.2,3.91815844]
[1748225579275,7.82949588,2552.7,2552.2,3.91815844]
[1748225579430,7.82949588,2552.7,2552.3,8.0]
[1748225579628,0.7644,2552.5,2552.3,8.0]
[1748225579832,0.7644,2552.5,2552.1,3.9182666]
[1748225580033,0.7644,2552.5,2552.2,3.91816201]
[1748225580460,0.7644,2552.5,2552.3,3.91801652]
[1748225580665,3.912,2552.5,2552.4,3.9178027]
[1748225581630,0.3596393,2552.6,2552.4,3.9178027]
[1748225581834,0.3596393,2552.6,2552.3,0.03917912]
[1748225582060,0.3596393,2552.6,2552.4,3.91776127]
[1748225582268,0.3596393,2552.7,2552.3,3.91800167]
[1748225582653,0.3596393,2552.7,2552.0,8.0]
[1748225582855,0.3596393,2552.7,2552.5,3.91771861]
[1748225583061,0.3596393,2552.6,2552.4,3.91780301]
[1748225584182,0.3596393,2552.6,2552.3,6.95186233]
[1748225584401,0.3596393,2552.5,2552.3,6.95186233]
[1748225585798,0.36069562,2552.6,2552.3,6.95186233]
[1748225585799,0.3596393,2552.4,2552.3,6.95186233]
[1748225586866,0.3596393,2552.5,2552.3,6.95186233]
[1748225587254,0.72033492,2552.5,2552.3,6.95186233]
[1748225587955,0.72033492,2552.5,2552.3,3.0339045]
[1748225588153,0.72033492,2552.5,2552.3,6.95192327]
[1748225588356,0.36069562,2552.4,2552.3,6.95192327]
[1748225588659,0.72033492,2552.4,2552.3,6.95192327]
[1748225588871,0.3596393,2552.4,2552.3,6.95192327]
[1748225589694,0.72033492,2552.4,2552.3,6.95192327]
[1748225591073,0.72033492,2552.4,2552.3,7.70282327]
[1748225591264,0.72033492,2552.4,2552.3,17.43494753]
[1748225591852,0.3596393,2552.4,2552.3,17.43494753]
[1748225592051,0.3596393,2552.4,2552.3,23.58494753]
[1748225593090,0.36818336,2552.6,2552.5,3.91772771]
[1748225593255,0.36818336,2552.6,2552.5,14.95163221]
[1748225593456,0.36069562,2552.8,2552.5,14.95163221]
[1748225593681,0.57711394,2552.8,2552.6,3.91754893]
[1748225594116,0.72397411,2552.7,2552.5,8.0]
[1748225594794,0.36327849,2552.6,2552.5,8.0]
[1748225595596,0.36327849,2552.6,2552.5,11.91772771]
[1748225596097,0.36327849,2552.6,2552.5,14.10298093]
[1748225596284,0.36327849,2552.6,2552.5,14.93138093]
[1748225596853,0.36327849,2552.7,2552.6,3.91757423]
[1748225597057,0.36327849,2552.7,2552.6,6.95147873]
[1748225599197,0.36327849,2552.7,2552.6,15.70367873]
[1748225599395,0.36327849,2552.7,2552.6,22.88434108]
[1748225599569,0.72887898,2552.9,2552.8,3.91726731]
[1748225599771,0.72887898,2552.9,2552.8,11.91726731]
[1748225600076,0.36818336,2552.9,2552.8,11.91726731]
[1748225600900,0.72431105,2552.9,2552.8,11.91726731]
[1748225601263,0.72431105,2552.9,2552.8,14.95117181]
[1748225603707,0.36361543,2552.9,2552.8,14.95117181]
[1748225604294,0.72431105,2552.9,2552.8,14.95117181]
[1748225605602,0.36361543,2552.9,2552.8,14.95117181]
[1748225606006,0.72431105,2552.9,2552.8,14.95117181]
[1748225611084,0.36361543,2552.9,2552.8,14.95117181]
[1748225613581,0.72431105,2552.9,2552.8,14.95117181]
[1748225615927,0.36361543,2552.9,2552.8,14.95117181]
[1748225616085,0.72431105,2552.9,2552.8,14.95117181]
[1748225616820,0.94072937,2552.9,2552.8,14.95117181]
[1748225616980,0.94072937,2552.9,2552.6,6.15]
[1748225617185,0.21641832,2552.8,2552.3,3.91803471]
[1748225617389,0.78030126,2552.8,2552.4,3.91781036]
[1748225617608,0.72431105,2552.7,2552.4,3.91781036]
[1748225618010,0.36069562,2552.6,2552.4,3.91781036]
[1748225618309,0.36069562,2552.5,2552.4,11.91781036]
[1748225618524,0.72431105,2552.5,2552.4,11.91781036]
[1748225619106,0.94072937,2552.5,2552.4,11.91781036]
[1748225619827,1.30891273,2552.5,2552.4,11.91781036]
[1748225620028,1.09249441,2552.5,2552.4,11.91781036]
[1748225620925,0.94072937,2552.5,2552.4,11.91781036]
[1748225621227,0.94072937,2552.5,2552.4,15.18438532]
[1748225621790,0.72431105,2552.5,2552.4,15.18438532]
[1748225622425,0.72431105,2552.5,2552.4,21.33438532]
[1748225625017,0.72431105,2552.5,2552.4,18.06781036]
[1748225626128,1.31544892,2552.5,2552.4,14.15]
[1748225626288,1.31544892,2552.5,2552.3,6.95185799]
[1748225626289,1.31544892,2552.5,2552.1,3.0339045]
[1748225626484,0.36069562,2552.4,2552.1,3.0339045]
[1748225626898,0.57908906,2552.3,2552.1,3.0339045]
[1748225627327,0.36361543,2552.2,2552.1,3.0339045]
[1748225627626,1.31544892,2552.2,2552.1,6.95224625]
[1748225628035,1.31544892,2552.2,2552.1,14.95224625]
[1748225628203,1.31544892,2552.2,2552.1,15.73524625]
[1748225628525,0.73635986,2552.2,2552.1,17.70061789]
[1748225629416,0.36361543,2552.2,2552.1,17.70061789]
[1748225630520,0.37274443,2552.4,2552.3,11.91803471]
[1748225630725,0.37274443,2552.4,2552.3,14.95193921]
[1748225631122,0.21839344,2552.6,2552.5,3.91772771]
[1748225631322,0.21839344,2552.6,2552.5,6.95163221]
[1748225631657,0.94585575,2552.6,2552.5,6.95163221]
[1748225633817,1.31860018,2552.6,2552.5,6.95163221]
[1748225634339,1.10020674,2552.6,2552.5,6.95163221]
[1748225634742,1.31860018,2552.6,2552.5,6.95163221]
[1748225635334,0.94585575,2552.6,2552.5,6.95163221]
[1748225639048,1.31860018,2552.6,2552.5,6.95163221]
[1748225640351,0.94585575,2552.6,2552.5,6.95163221]
[1748225640658,0.72746231,2552.6,2552.5,6.95163221]
[1748225641934,0.7989,2552.5,2552.4,8.0]
[1748225642375,1.62079428,2552.5,2552.4,8.0]
[1748225642514,1.62079428,2552.5,2552.3,6.15]
[1748225642714,0.21839344,2552.4,2552.3,6.15]
[1748225642930,0.58212669,2552.4,2552.2,6.95199828]
[1748225643271,0.58212669,2552.4,2552.3,3.91803471]
[1748225643667,0.94601913,2552.4,2552.3,3.91803471]
[1748225644963,0.94601913,2552.4,2552.2,6.95199828]
[1748225645148,1.31874832,2552.4,2552.2,6.95199828]
[1748225645350,0.94601913,2552.3,2552.2,14.95199828]
[1748225646570,1.31874832,2552.3,2552.2,14.95199828]
[1748225654963,1.53051315,2552.3,2552.0,3.91843548]
[1748225655284,1.53051315,2552.3,2551.9,13.1025516]
[1748225655471,1.16729244,2552.2,2552.1,6.95211918]
[1748225655646,0.36389244,2552.2,2552.1,6.95211918]
[1748225656387,0.94601913,2552.2,2552.1,6.95211918]
[1748225656584,1.31874832,2552.2,2552.1,6.95211918]
[1748225658659,1.31874832,2552.2,2552.1,3.91821468]
[1748225668921,1.31874832,2552.2,2552.1,6.95211918]
[1748225669257,1.31874832,2552.2,2552.1,8.83918]
[1748225670094,1.31874832,2552.2,2552.1,6.95211918]
[1748225670607,2.07864832,2552.2,2551.8,3.91874218]
[1748225670803,0.36373325,2552.1,2551.9,3.91857334]
[1748225671005,0.36389244,2552.0,2551.9,3.91857334]
[1748225671705,0.73662163,2552.0,2551.9,3.91857334]
[1748225671884,1.31874832,2552.0,2551.9,3.91857334]
[1748225676624,1.52661315,2552.0,2551.9,3.91857334]
[1748225678491,2.28631315,2552.0,2551.6,8.0]
[1748225678802,6.20487989,2552.0,2551.3,6.9533669]
[1748225679006,0.94601913,2551.9,2551.5,3.91924791]
[1748225679304,0.36389244,2551.8,2551.5,3.91924791]
[1748225679827,0.58228588,2551.7,2551.5,3.91924791]
[1748225680220,0.72762569,2551.6,2551.5,6.95315241]
[1748225680530,0.72762569,2551.6,2551.5,17.62140923]
[1748225680729,1.10035488,2551.6,2551.5,17.62140923]
[1748225681932,0.72762569,2551.6,2551.5,15.73415241]
[1748225682640,0.94632893,2551.6,2551.5,15.73415241]
[1748225682934,0.94632893,2551.6,2551.5,19.64715241]
[1748225683311,0.21870324,2551.6,2551.5,19.64715241]
[1748225683626,0.21870324,2551.9,2551.8,11.91880241]
[1748225683834,0.58259568,2551.9,2551.8,14.95270691]
[1748225684432,0.94726926,2551.9,2551.8,14.95270691]
[1748225684729,1.31999845,2551.9,2551.8,11.91880241]
[1748225685034,1.31999845,2551.9,2551.8,14.95270691]
[1748225688924,1.31999845,2551.9,2551.8,21.92269029]
[1748225689125,1.10129521,2551.9,2551.8,21.92269029]
[1748225689723,1.10129521,2551.9,2551.8,22.67469029]
[1748225690448,0.72856602,2551.9,2551.8,22.67469029]
[1748225691445,0.72856602,2551.9,2551.8,26.58769029]
[1748225700127,0.94763371,2551.9,2551.8,26.58769029]
[1748225702365,0.94763371,2551.9,2551.8,14.15]
[1748225702957,0.7736,2551.8,2551.6,8.0]
[1748225703151,0.36467358,2551.7,2551.6,8.0]
[1748225703458,4.8665897,2551.7,2551.6,8.0]
[1748225703964,5.82247355,2551.7,2551.3,3.0339045]
[1748225704137,0.7862,2551.5,2551.2,3.0339045]
[1748225704344,0.7862,2551.5,2551.3,8.0]
[1748225704556,0.7862,2551.5,2551.1,4.01979024]
[1748225704865,0.58296013,2551.4,2551.1,7.05369474]
[1748225705168,0.36467358,2551.3,2551.2,3.91972405]
[1748225705343,0.72856602,2551.3,2551.2,3.91972405]
[1748225705543,1.32162626,2551.3,2551.2,3.91972405]
[1748225707433,0.72856602,2551.3,2551.2,3.91972405]
[1748225708229,1.55056602,2551.3,2551.1,0.1]
[1748225708971,1.32162626,2551.2,2551.1,0.1]
[1748225709472,1.97463509,2551.2,2551.1,0.1]
[1748225709674,2.77063509,2551.2,2551.1,0.1]
[1748225710433,2.39664254,2551.2,2551.1,0.1]
[1748225711766,2.77063509,2551.2,2551.1,0.1]
[1748225712775,6.4655674,2551.2,2551.1,0.1]
[1748225713274,6.09157485,2551.2,2551.1,0.1]
[1748225713572,10.0112989,2551.2,2551.1,0.1]
[1748225713770,6.09157485,2551.2,2551.1,0.1]
[1748225714092,10.0112989,2551.2,2551.1,0.1]
[1748225714379,10.23036659,2551.2,2551.1,0.1]
[1748225715472,6.31064254,2551.2,2551.1,0.1]
[1748225715687,10.23036659,2551.2,2551.1,0.1]
[1748225715891,7.15738856,2551.2,2551.1,0.1]
[1748225716186,6.93259682,2551.2,2551.1,0.1]
[1748225717506,1.56958799,2551.2,2551.1,7.05378219]
[1748225717778,0.36467358,2551.2,2551.1,7.05378219]
[1748225717976,1.20491441,2551.3,2551.2,3.91972405]
[1748225718180,0.84102197,2551.3,2551.2,3.91972405]
[1748225719360,0.36467358,2551.5,2551.2,3.91972405]
[1748225719562,2.33108587,2551.5,2551.2,3.91972405]
[1748225719881,0.8012,2551.4,2551.1,0.1]
[1748225720245,1.16587358,2551.4,2551.1,0.1]
[1748225721198,5.08539876,2551.4,2550.9,14.95407965]
[1748225721494,5.4492912,2551.4,2550.9,14.95407965]
[1748225721694,1.27041407,2551.3,2550.9,14.95407965]
[1748225722551,1.27041407,2551.3,2551.1,3.0339045]
[1748225722777,5.67293382,2551.4,2551.2,3.91963935]
[1748225722778,1.75893382,2551.4,2551.2,3.91963935]
[1748225722947,1.75893382,2551.4,2551.1,6.953701]
[1748225723577,1.53986613,2551.4,2551.1,6.953701]
[1748225723788,1.16587358,2551.4,2551.1,6.953701]
[1748225724649,0.36467358,2551.3,2551.1,6.953701]
[1748225724882,0.36467358,2551.3,2551.2,3.91972405]
[1748225725610,0.36467358,2551.5,2551.3,3.91954311]
[1748225725972,0.36467358,2551.5,2551.2,3.91966144]
[1748225726373,0.36467358,2551.4,2551.3,3.91955682]
[1748225726572,0.36467358,2551.4,2551.3,7.76366132]
[1748225726768,0.36467358,2551.4,2551.3,8.85099145]
[1748225727003,0.36467358,2551.4,2551.3,16.85099145]
[1748225727619,0.73866613,2551.6,2551.5,3.91926317]
[1748225727917,0.73866613,2551.6,2551.5,6.95316767]
[1748225728418,0.36467358,2551.6,2551.5,6.95316767]
[1748225728806,0.36467358,2551.7,2551.6,3.91910957]
[1748225731909,0.8099,2551.6,2551.4,6.15]
[1748225732117,0.8099,2551.6,2551.4,18.06939987]
[1748225732305,0.36467358,2551.5,2551.4,18.06939987]
[1748225733305,0.36467358,2551.5,2551.4,18.82529987]
[1748225734775,0.36379989,2551.6,2551.5,3.91926317]
[1748225734976,0.36379989,2551.6,2551.5,6.95316767]
[1748225735206,0.36379989,2551.7,2551.6,3.91910957]
[1748225735375,0.36379989,2551.7,2551.6,7.79700193]
[1748225735591,0.37399255,2551.8,2551.7,11.91895599]
[1748225735804,0.36379989,2551.9,2551.8,11.91880241]
[1748225735985,0.37399255,2552.0,2551.9,3.91864884]
[1748225737222,0.36500244,2552.0,2551.9,3.91864884]
[1748225738297,0.36500244,2552.1,2552.0,3.91849529]
[1748225739518,1.19059989,2552.4,2552.0,3.91849529]
[1748225739519,0.36500244,2552.3,2552.1,3.91822015]
[1748225740022,0.36500244,2552.3,2552.0,0.7767]
[1748225740627,0.36500244,2552.2,2552.1,3.91822205]
[1748225740935,0.36500244,2552.2,2552.1,3.91834175]
[1748225741637,0.36500244,2552.4,2552.1,3.91834175]
[1748225742831,0.36500244,2552.3,2552.2,3.91818822]
[1748225743129,0.36500244,2552.3,2552.1,3.91827636]
[1748225743320,0.36500244,2552.3,2552.0,0.7767]
[1748225743629,4.28294606,2552.4,2552.0,3.0339045]
[1748225743836,0.4646746,2552.3,2552.0,3.0339045]
[1748225744413,0.82967704,2552.3,2552.0,3.0339045]
[1748225744587,0.82967704,2552.3,2552.0,6.95239973]
[1748225744792,0.36500244,2552.3,2552.0,6.95239973]
[1748225744988,0.36500244,2552.4,2552.0,6.95239973]
[1748225746046,4.28290055,2552.4,2552.0,3.0339045]
[1748225746339,0.36500244,2552.3,2552.0,6.95239235]
[1748225747097,0.8321,2552.2,2551.8,14.15]
[1748225747435,1.19710244,2552.2,2551.8,14.15]
[1748225747641,5.11537612,2552.2,2551.8,14.15]
[1748225748044,4.75044175,2552.1,2551.8,8.0]
[1748225748212,3.91890675,2551.8,2551.5,8.0]
[1748225748414,0.8199,2551.6,2551.2,9.1839045]
[1748225748742,0.8199,2551.6,2551.4,3.91932484]
[1748225749602,0.36500244,2551.5,2551.4,3.91932484]
[1748225749828,0.36500244,2551.5,2551.3,11.91950667]
[1748225750135,0.36500244,2551.5,2551.3,8.0]
[1748225752303,0.36500244,2551.5,2551.2,6.95358518]
[1748225752507,0.9117778,2551.5,2551.1,3.91984622]
[1748225752858,4.46611139,2551.5,2551.0,3.0339045]
[1748225753059,0.36379989,2551.4,2551.0,3.0339045]
[1748225753346,3.91973246,2551.2,2550.7,3.92035453]
[1748225753649,0.46952325,2551.1,2550.7,3.92035453]
[1748225753943,1.13568273,2551.0,2550.7,3.92035453]
[1748225754444,1.13568273,2551.0,2550.8,3.9203255]
[1748225754745,1.13568273,2551.0,2550.7,11.92045688]
[1748225755250,0.36398273,2550.9,2550.3,6.9383]
[1748225755554,4.87309738,2550.9,2550.4,3.92088318]
[1748225755710,8.78609738,2550.9,2550.4,11.92088318]
[1748225755906,0.7717,2550.7,2550.3,9.1839045]
[1748225756208,4.28470055,2550.6,2550.3,6.15]
[1748225756542,0.36379989,2550.5,2550.1,4.02140861]
[1748225756708,1.29720499,2550.5,2550.1,4.02140861]
[1748225756907,0.9334051,2550.5,2550.1,4.02140861]
[1748225757108,0.36398273,2550.4,2550.1,4.02140861]
[1748225758108,1.29738783,2550.5,2550.1,4.02140861]
[1748225758308,0.7717,2550.4,2550.1,0.1]
[1748225758648,0.7717,2550.4,2550.1,4.02140061]
[1748225760348,0.7717,2550.4,2550.1,0.1]
[1748225760645,5.25465675,2550.4,2550.1,0.1]
[1748225760845,1.33361051,2550.4,2550.1,0.1]
[1748225761048,0.7717,2550.4,2550.2,3.0339045]
[1748225761234,3.914,2550.5,2550.3,3.92099909]
[1748225761441,3.914,2550.5,2550.2,6.95509204]
[1748225765163,3.915,2550.5,2550.2,6.95509204]
[1748225765749,0.94490741,2550.8,2550.7,3.92049241]
[1748225765953,0.36398273,2550.8,2550.7,3.0339045]
[1748225766259,4.7092,2551.1,2550.7,3.0339045]
[1748225766461,1.34822122,2551.1,2550.8,3.92031412]
[1748225766625,1.34822122,2551.1,2550.8,3.92033871]
[1748225766824,1.34822122,2551.1,2550.8,3.92029948]
[1748225767259,1.34822122,2551.1,2550.7,6.95432932]
[1748225767631,0.73433387,2551.3,2551.1,3.9197854]
[1748225767830,0.73433387,2551.3,2550.9,6.95404645]
[1748225767831,1.51083387,2551.3,2550.9,6.95404645]
[1748225768035,1.14703398,2551.3,2551.1,3.91978406]
[1748225768239,0.7765,2551.3,2551.1,3.91978406]
[1748225768539,3.915,2551.4,2551.2,3.91959566]
[1748225768867,3.915,2551.4,2551.1,3.0339045]
[1748225768868,3.915,2551.4,2551.3,3.91957041]
[1748225769549,3.915,2551.4,2551.2,3.91963511]
[1748225769950,3.915,2551.4,2551.2,3.91969035]
[1748225770950,0.7946,2551.5,2551.2,3.91969035]
[1748225772237,1.76728815,2551.5,2551.2,3.91969035]
[1748225772634,1.76728815,2551.5,2551.1,3.91980892]
[1748225773581,1.76728815,2551.5,2551.2,3.919724]
[1748225773956,1.76728815,2551.5,2551.1,3.91980571]
[1748225774484,1.76728815,2551.5,2551.0,3.91997944]
[1748225774785,1.76728815,2551.5,2551.1,6.95372014]
[1748225774966,0.7946,2551.5,2551.1,3.0339045]
[1748225775169,0.7946,2551.5,2551.1,6.95370176]
[1748225775566,0.7946,2551.5,2551.2,3.9196482]
[1748225775772,4.7096,2551.5,2551.1,6.95369956]
[1748225776263,3.91975738,2551.2,2550.9,8.0]
[1748225776469,4.7096,2551.5,2550.9,8.0]
[1748225776666,3.91964992,2551.3,2550.9,8.0]
[1748225778080,4.28363265,2551.3,2550.9,8.0]
[1748225778282,4.28363265,2551.3,2550.9,11.92018149]
[1748225778484,0.36398273,2551.3,2551.0,3.91999934]
[1748225778659,0.36398273,2551.3,2551.0,3.92003136]
[1748225778857,0.36398273,2551.2,2551.1,6.95378219]
[1748225779056,0.36398273,2551.2,2551.1,3.0339045]
[1748225779401,0.36398273,2551.2,2550.9,3.92013697]
[1748225779689,0.36398273,2551.2,2550.7,6.95433625]
[1748225779690,0.36398273,2551.2,2551.0,3.92002059]
[1748225780774,0.36398273,2551.2,2551.1,6.95378219]
[1748225781083,0.36398273,2551.2,2551.1,16.15710559]
[1748225781588,0.36398273,2551.4,2551.2,11.91972261]
[1748225782650,0.36398273,2551.5,2551.2,11.91972261]
[1748225782976,0.72778262,2551.5,2551.1,3.0339045]
[1748225783177,4.64708283,2551.5,2551.1,3.0339045]
[1748225783376,0.36398273,2551.4,2551.1,6.9537727]
[1748225783573,4.7507078,2551.3,2550.8,3.92027852]
[1748225783890,8.66475818,2551.3,2550.8,11.92032891]
[1748225784405,4.28372634,2551.2,2550.8,8.0]
[1748225784588,3.91995079,2551.1,2550.7,3.0339045]
[1748225784773,5.72449151,2551.2,2550.7,6.95437633]
[1748225784979,0.36398273,2551.1,2550.7,6.95437633]
[1748225785596,0.72804705,2551.1,2550.7,6.95438489]
[1748225785802,4.64795658,2551.1,2550.7,3.0339045]
[1748225786262,0.36398273,2551.0,2550.7,3.0339045]
[1748225786819,0.36398273,2551.0,2550.7,6.95439589]
[1748225787166,0.36406432,2551.1,2550.7,6.95438359]
[1748225787167,0.36398273,2550.9,2550.7,6.95438359]
[1748225788176,0.36398273,2550.8,2550.7,6.95438359]
[1748225788889,0.36398273,2550.9,2550.7,6.95438359]
[1748225789810,0.36398273,2550.8,2550.7,6.95438359]
[1748225790519,0.36398273,2550.8,2550.7,16.73537403]
[1748225790816,0.36398273,2550.8,2550.7,17.52207403]
[1748225791101,0.21756363,2551.1,2550.8,3.92025566]
[1748225791279,0.37053398,2551.2,2550.9,3.0339045]
[1748225791480,0.37053398,2551.2,2550.9,6.95408759]
[1748225791681,0.36406432,2551.1,2550.9,6.95408759]
[1748225791877,0.36445719,2551.0,2550.9,6.95408759]
[1748225792909,0.36445719,2551.0,2550.9,6.95408953]
[1748225793710,0.72852151,2551.0,2550.9,6.95408953]
[1748225793898,0.36445719,2551.0,2550.9,6.95408953]
[1748225794327,0.72852151,2551.0,2550.9,6.95408953]
[1748225796010,1.31661912,2551.0,2550.9,6.95408953]
[1748225796893,1.09905549,2551.0,2550.9,8.38901466]
[1748225797875,0.72852151,2551.0,2550.9,8.38901466]
[1748225799222,0.72852151,2551.0,2550.9,3.0339045]
[1748225799514,0.94608514,2551.0,2550.9,6.95408953]
[1748225799719,1.31661912,2551.0,2550.9,6.95408953]
[1748225801287,1.09905549,2551.0,2550.9,14.95408953]
[1748225803615,0.72852151,2551.0,2550.9,14.95408953]
[1748225806241,1.09905549,2551.0,2550.9,14.95408953]
[1748225807732,0.72852151,2551.0,2550.9,14.95408953]
[1748225808137,0.72852151,2551.0,2550.8,10.07033814]
[1748225808138,0.72852151,2551.0,2550.8,6.15]
[1748225808447,0.94776026,2550.9,2550.8,6.15]
[1748225808997,1.31829424,2550.9,2550.8,6.15]
[1748225809734,1.31829424,2550.9,2550.8,10.07033871]
[1748225810718,1.31829424,2550.9,2550.8,10.83723871]
[1748225811040,1.31829424,2550.9,2550.8,12.61639964]
[1748225811330,1.31829424,2550.9,2550.8,6.15]
[1748225812399,1.31829424,2550.9,2550.8,10.07033871]
[1748225813746,1.31829424,2550.9,2550.8,3.92033871]
[1748225813904,1.09905549,2550.9,2550.8,4.74213871]
[1748225814445,15.545604,2552.7,2550.8,4.74213871]
[1748225814446,0.10959918,2551.3,2551.0,3.92003136]
[1748225814655,0.6231892,2551.5,2551.4,3.91941679]
[1748225815059,0.6231892,2551.5,2551.3,3.0339045]
[1748225815825,0.6231892,2551.5,2551.4,3.91941679]
[1748225815826,2.58960149,2551.5,2551.4,3.91941679]
[1748225816436,1.96641229,2551.5,2551.4,3.91941679]
[1748225821306,3.914,2551.8,2551.5,3.91917716]
[1748225822005,3.914,2551.8,2551.4,3.91938015]
[1748225822220,3.91913319,2551.6,2551.2,6.15]
[1748225822368,3.914,2551.5,2551.1,3.91987529]
[1748225822706,0.7973,2551.4,2551.1,3.91987529]
[1748225824583,0.7973,2551.4,2551.2,3.91971763]
[1748225825083,0.7973,2551.4,2551.1,3.91979286]
[1748225825420,0.7973,2551.4,2550.9,3.0339045]
[1748225825624,0.7973,2551.4,2550.8,6.15]
[1748225825924,1.66036248,2551.4,2551.0,3.91989683]
[1748225826726,0.36532552,2551.3,2551.0,3.91989683]
[1748225827386,0.36532552,2551.2,2551.0,3.91989683]
[1748225827779,0.37414778,2551.1,2551.0,3.91989683]
[1748225828286,0.7394733,2551.1,2551.0,3.91989683]
[1748225828485,0.7868,2551.0,2550.8,6.15]
[1748225829003,0.7868,2551.0,2550.8,10.07029398]
[1748225829205,0.37414778,2550.9,2550.8,10.07029398]
[1748225829417,0.7394733,2550.9,2550.8,10.07029398]
[1748225831431,0.7394733,2550.9,2550.8,3.92029398]
[1748225832213,0.36532552,2550.9,2550.8,3.92029398]
[1748225833129,0.36532552,2550.9,2550.7,6.95432114]
[1748225833635,0.7627,2550.8,2550.6,3.92050128]
[1748225833820,0.36532552,2550.7,2550.6,3.92050128]
[1748225838347,0.36532552,2550.7,2550.6,5.00802145]
[1748225839059,0.36532552,2550.7,2550.6,13.77002145]
[1748225839423,0.37414778,2550.8,2550.7,11.92049241]
[1748225839727,0.37414778,2550.8,2550.7,15.70469691]
[1748225839929,0.36532552,2551.3,2551.2,4.67002405]
[1748225840142,0.36532552,2551.3,2551.2,8.56291634]
[1748225840348,1.96641229,2551.5,2551.3,3.91957041]
[1748225840531,1.96641229,2551.5,2551.4,3.91941679]
[1748225841556,2.33144803,2551.5,2551.4,3.91941679]
[1748225842463,0.36503574,2551.5,2551.4,6.95332129]
[1748225842618,0.36503574,2551.5,2551.3,3.91949716]
[1748225843318,0.36503574,2551.5,2551.4,3.91941679]
[1748225844358,0.36503574,2551.5,2551.4,6.95332129]
[1748225848064,0.36503574,2551.5,2551.4,3.0339045]
[1748225848655,0.36503574,2551.5,2551.3,3.91955511]
[1748225848856,0.36503574,2551.5,2551.2,6.95355971]
[1748225848857,0.36503574,2551.4,2551.2,3.0339045]
[1748225849023,0.36503574,2551.4,2551.2,6.95360465]
[1748225849637,0.36503574,2551.3,2551.2,6.95360465]
[1748225849840,0.36503574,2551.3,2551.2,8.04096387]
[1748225850065,0.36503574,2551.3,2551.2,8.82646387]
[1748225850359,0.36503574,2551.4,2551.3,3.91957041]
[1748225850736,0.36503574,2551.7,2551.3,3.91957041]
[1748225850921,0.36503574,2551.7,2551.5,3.91914097]
[1748225851129,0.36503574,2551.7,2551.4,6.95327471]
[1748225851664,0.36503574,2551.6,2551.4,6.95327471]
[1748225852628,0.36503574,2551.5,2551.4,6.95327471]
[1748225852822,0.36503574,2551.5,2551.4,7.99431089]
[1748225853561,0.73876481,2551.8,2551.6,3.91905705]
[1748225854418,0.36503574,2551.7,2551.6,3.91905705]
[1748225855450,0.36503574,2551.7,2551.5,3.91918192]
[1748225856563,0.36503574,2551.7,2551.6,3.91910957]
[1748225856737,0.37372907,2552.0,2551.9,3.91864884]
[1748225856925,2.58960149,2552.4,2552.3,3.91803471]
[1748225857130,2.58960149,2552.4,2552.3,6.95193921]
[1748225857329,2.95455162,2552.4,2552.3,6.95193921]
[1748225857792,2.95455162,2552.4,2552.3,21.88983921]
[1748225858082,2.33136242,2552.4,2552.3,22.93116959]
[1748225858286,1.96641229,2552.4,2552.3,22.93116959]
[1748225860466,1.96641229,2552.4,2552.3,23.31387355]
[1748225862035,1.96641229,2552.4,2552.3,19.10936509]
[1748225862365,1.96641229,2552.4,2552.3,18.06803471]
[1748225863046,0.7831,2552.7,2552.4,3.91781232]
[1748225863238,0.7831,2552.7,2552.4,11.91781232]
[1748225863440,0.7831,2552.7,2552.5,3.91772739]
[1748225863661,0.7831,2552.7,2552.6,3.91757423]
[1748225863971,4.8371,2552.9,2552.7,3.91737126]
[1748225864175,0.9241,2552.9,2552.6,3.0339045]
[1748225864377,0.1,2552.9,2552.8,6.95117181]
[1748225865046,0.1,2552.9,2552.8,7.81203708]
[1748225865254,0.1,2552.9,2552.8,7.77287181]
[1748225865594,0.1,2552.9,2552.8,15.77287181]
[1748225867552,0.1,2552.9,2552.8,19.68487181]
[1748225867751,0.1,2552.9,2552.8,21.11840238]
[1748225868890,0.36495013,2553.8,2553.7,3.91588675]
[1748225869040,0.36495013,2553.8,2553.7,6.94979125]
[1748225869582,0.1,2553.9,2553.7,6.94979125]
[1748225869872,0.1,2553.9,2553.7,8.03638812]
[1748225870050,0.1,2553.9,2553.7,4.12050137]
[1748225870575,0.1,2553.9,2553.3,3.0339045]
[1748225870740,0.771,2553.8,2553.3,3.91639773]
[1748225870938,0.771,2553.8,2553.4,3.9163189]
[1748225872268,0.771,2553.8,2553.3,3.91643216]
[1748225872462,0.771,2553.8,2553.4,3.9163456]
[1748225872774,1.63955073,2553.8,2553.4,3.91633386]
[1748225874378,5.5553204,2553.8,2553.3,3.91648181]
[1748225875253,3.91589679,2553.7,2553.2,3.916582]
[1748225875438,3.91589679,2553.7,2553.1,13.10065209]